Cogmind - Beta 12 X6 @@@ ROGUE MODE // 2023.02.24 @ 19:30:45 Player: ArabianSandBoa Result: Destroyed by G-47 Trooper with Particle Gun Performance ------------- Evolutions (2) 1000 Regions Visited (7) 1400 Robots Destroyed (138) 690 Value Destroyed (4202) 4202 Prototype IDs (32) 640 Alien Tech Used (0) 0 Bonus (1093) 1093 TOTAL SCORE: 9025 Bonus ------- High Alert Combat Kills 1241 Follower Combat Kills 7 Entered Garrisons 200 Aligned with FarCom 300 Friendly Fire -655 Cogmind --------- Core Integrity 0/550 Matter 13/300 Energy 99/100 System Corruption 9% Temperature Cool (52) Movement Treading (250) Ox1 Location -8/Materials Parts ------- > --- POWER (1) -------- (None) > --- PROPULSION (3) --- Armored Treads Armored Treads Armored Treads > --- UTILITY (5) ------ Huge Storage Unit Advanced Targeting Computer Reactive Plating Medium Reflective Plating Insulated Plating > --- WEAPON (2) ------- Advanced EMP Blaster Missile Launcher > --- INVENTORY (25) --- Armored Treads Armored Treads Power Amplifier Improved Heat Sink High-capacity Storage Unit Faulty Experimental Sensor Array Makeshift Terrain Scanner Particle Charger Improved Utility Shielding Improved Weapon Shielding Reactive Plating Shock Absorption System Remote Shield Authchip [Power] Long-range Tractor Beam Arc Projector Arc Projector Firepult Enhanced Autogun Enhanced Autogun Enhanced Autogun Enhanced Autogun Gauss Rifle Powered Hammer Peak State ------------ > --- POWER ------------ Light Angular Momentum Engine > --- PROPULSION ------- Armored Treads Armored Treads Advanced Treads > --- UTILITY ---------- Huge Storage Unit Makeshift Terrain Scanner Advanced Targeting Computer Advanced Targeting Computer Medium Reactive Plating > --- WEAPON ----------- Enhanced Autogun Enhanced Autogun > --- INVENTORY -------- Light Angular Momentum Engine Power Amplifier Improved Heat Sink High-capacity Storage Unit Experimental Sensor Array Improved Utility Shielding Improved Weapon Shielding Reactive Plating Reactive Plating Remote Shield Authchip [Power] Long-range Tractor Beam Improved Trap Extractor Arc Projector Arc Projector Firepult Enhanced Autogun Enhanced Autogun Enhanced Autogun Enhanced Autogun Gauss Rifle Advanced EMP Blaster Rocket Launcher Powered Hammer [Rating: 50] Favorites ----------- Power Light Angular Momentum Engine Engine Light Angular Momentum Engine Power Core Light Nuclear Core Propulsion Armored Treads Treads Armored Treads Leg Aluminum Leg Wheel Compact Wheel Utility Advanced Targeting Computer Device Improved Heat Sink Storage Huge Storage Unit Processor Advanced Targeting Computer Hackware Hacking Suite Protection Reactive Plating Weapon Enhanced Autogun Energy Gun Improved EM Shotgun Ballistic Gun Enhanced Autogun Launcher Advanced EMP Blaster Impact Weapon Powered Hammer Build | -11 -10 -10 -10 -9 -8 -8 -8 ------- Run | Jun Mat Min Exi Min Mat Gar Mat Slots Evolved 4 | . . . . . 4 . . Power . | . . . . . . . . Propulsion 1 | . . . . . 1 . . Utility 3 | . . . . . 3 . . Weapon . | . . . . . . . . Parts Attached 126 | 3 8 3 2 7 57 36 10 Power 6 | . . . . 3 2 1 . Engine 4 | . . . . 2 2 . . Core 2 | . . . . 1 . 1 . Reactor . | . . . . . . . . Propulsion 19 | 2 1 . . 1 11 3 1 Treads 13 | . . . . . 9 3 1 Leg . | . . . . . . . . Wheel 6 | 2 1 . . 1 2 . . Hover . | . . . . . . . . Flight . | . . . . . . . . Utility 40 | 1 3 2 . . 18 12 4 Device 11 | 1 . . . . 4 5 1 Storage 3 | . 2 1 . . . . . Processor 4 | . 1 1 . . 2 . . Hackware 1 | . . . . . 1 . . Protection 21 | . . . . . 11 7 3 Artifact . | . . . . . . . . Weapon 61 | . 4 1 2 3 26 20 5 Energy Gun 9 | . 3 . 1 2 3 . . Energy Cannon . | . . . . . . . . Ballistic Gun 35 | . 1 1 1 1 15 14 2 Ballistic Cannon . | . . . . . . . . Launcher 9 | . . . . . 6 1 2 Special Weapon . | . . . . . . . . Impact Weapon 8 | . . . . . 2 5 1 Slashing Weapon . | . . . . . . . . Piercing Weapon . | . . . . . . . . Special Melee Weapon . | . . . . . . . . Unidentified Prototypes 5 | . 1 . . . 4 . . Corrupted Parts 3 | . . . . 3 . . . System Corruption 9 | . . . . 9 . . . Parts Lost 11 | . 2 . . 1 4 4 . Power 2 | . . . . . . 2 . Propulsion 3 | . 1 . . 1 1 . . Utility 4 | . . . . . 2 2 . Weapon 2 | . 1 . . . 1 . . Highest Loss Streak 3 | . 2 . . 1 3 2 . To Critical Strikes . | . . . . . . . . Average Slot Usage (%) 99 | . 99 98 99 99 99 98 87 Engine 8 | . 14 14 14 . 9 3 . Core 1 | . . . . 13 . 4 . Treads 15 | . . . . . 19 27 27 Wheel 11 | . 27 28 28 27 7 . . Device 5 | . 6 . . . 6 7 . Storage 10 | . 14 14 14 14 9 9 9 Processor 12 | . 7 14 14 14 10 18 9 Protection 11 | . . . . . 18 10 26 Energy Gun 4 | . 18 14 13 14 . . . Ballistic Gun 14 | . 9 13 14 14 16 15 2 Naked Turns . | . . . . . . . . Heaviest Build 133 | 13 49 89 89 95 133 116 112 Greatest Support 67 | 32 32 32 32 32 67 60 60 Greatest Overweight (x) 7 | . 1 2 2 2 7 1 1 Average Overweight (x) 1 | . . 1 2 2 2 1 1 Largest Inventory Capacity 25 | 8 20 25 25 25 25 25 25 Average Capacity 23 | 8 14 22 25 25 25 25 25 Most Carried 25 | 8 12 25 25 25 25 25 25 Average Carried 23 | 6 10 20 24 24 24 24 24 Final Capacity 25 | 8 20 25 25 25 25 25 25 Final Carried 25 | 8 12 24 25 25 25 24 25 Class Distribution -------------------- 88% | Mutant 6% | Commander-Mutant 3% | Skirmisher Dominant Class ---------------- Mutant | -10/Materials Mutant | -10/Mines Mutant | -10/Exiles Mutant | -9/Mines Mutant | -8/Materials Mutant | -8/Garrison Mutant | -8/Materials Resources | -11 -10 -10 -10 -9 -8 -8 -8 ----------- Run | Jun Mat Min Exi Min Mat Gar Mat Matter Collected 3825 | 199 221 54 . 109 1741 1369 132 Remotely 790 | . . . . . 212 578 . Salvage Created 5202 | 119 465 227 . 356 2419 1336 280 Parts 286 | 6 24 12 . 19 153 63 9 Haulers Intercepted 7 | . 2 . . . 5 . . Recyclers Shooed 5 | . 2 . . . 3 . . Parts Field Recycled . | . . . . . . . . Retrieved Matter . | . . . . . . . . Parts Self-Destructed . | . . . . . . . . Prevented . | . . . . . . . . Kills | -11 -10 -10 -10 -9 -8 -8 -8 ------- Run | Jun Mat Min Exi Min Mat Gar Mat Combat Hostiles Destroyed 96 | . 7 1 . 5 43 33 7 Melee 3 | . . . . . 1 1 1 Guns 63 | . 6 1 . 5 23 28 . AOE 30 | . 1 . . . 19 4 6 Classes Destroyed 17 | 2 4 . . . 9 2 . Worker 4 | . . . . . 3 . 1 Builder 5 | . 1 . . . 4 . . Tunneler 4 | 1 . . . 3 . . . Hauler 7 | . 2 . . . 5 . . Recycler 7 | 1 . . . 1 4 . 1 Operator 2 | . . . . . 2 . . Watcher 10 | . 3 . . . 5 1 1 Swarmer 15 | . . . . . 8 4 3 Cutter 3 | . . . . . 3 . . Grunt 57 | . 7 1 . 5 20 20 4 Brawler 1 | . . . . . 1 . . Protector 2 | . . . . . 1 1 . Sentry 8 | . . . . . 7 1 . Demolisher 1 | . . . . . . 1 . Hunter 5 | . . . . . 2 3 . Programmer 3 | . . . . . . 3 . Heavy 1 | . . . . . 1 . . Thug 3 | . . 3 . . . . . Best Kill Streak 11 | 2 6 1 . 5 11 8 4 Combat Bots Only 11 | . 3 1 . 3 11 7 3 Max Kills in Single Turn 5 | 1 3 1 . 1 5 2 2 Gunslinging . | . . . . . . . . Exploded 4 | . 1 . . . 4 2 2 Melee 1 | . . . . . 1 1 1 Uniques/NPCs Destroyed . | . . . . . . . . Combat | -11 -10 -10 -10 -9 -8 -8 -8 -------- Run | Jun Mat Min Exi Min Mat Gar Mat Damage Taken 5074 | . 211 13 . 178 1933 2522 217 Core 658 | . 20 . . 84 252 290 12 Absorbed by Shields 18 | . . . . . . 18 . Redirected to Shielding 88 | . . . . . 88 . . Regen/Repaired (Parts) 229 | . . . . . 229 . . Core Remaining (%) 79 | 100 . . . 58 . . . Volleys Fired 318 | 11 18 10 . 16 121 130 12 Largest 2 | 2 2 2 . 2 2 2 2 Hottest 90 | 40 90 68 . 70 70 53 72 Shots Fired 580 | 22 36 15 . 30 235 224 18 Gun 540 | 22 36 15 . 30 216 218 3 Cannon . | . . . . . . . . Launcher 40 | . . . . . 19 6 15 Special . | . . . . . . . . Kinetic 489 | 22 12 5 . 16 213 218 3 Thermal . | . . . . . . . . Explosive 27 | . . . . . 9 6 12 Electromagnetic 64 | . 24 10 . 14 13 . 3 Robot Hit Streak 46 | 3 17 10 . 7 18 46 5 Robot Miss Streak 7 | 7 4 2 . 3 3 2 2 Penetration Max 1 | . . . . . . 1 . Secondary Targets 3 | . 2 . . 1 . . . Max Gunslinging Chain 1 | . 1 . . 1 . . . Shots Hit Robots 407 | 8 27 14 . 25 157 168 8 Core Hits 255 | 3 25 11 . 17 111 72 16 Critical Kills 3 | . 1 . . . 2 . . Critical Parts Destroyed . | . . . . . . . . Critical Strikes 3 | . 1 . . . 2 . . Destroy 3 | . 1 . . . 2 . . Melee Attacks 24 | . . . . . 5 16 3 Impact 24 | . . . . . 5 16 3 Slashing . | . . . . . . . . Piercing . | . . . . . . . . Sneak Attacks 1 | . . . . . 1 . . Combat Hostiles . | . . . . . . . . Follow-up Attacks . | . . . . . . . . Damage Inflicted 10879 | 106 803 308 . 414 4661 3683 904 Guns 6927 | 106 583 225 . 414 2606 2970 23 Cannons . | . . . . . . . . Explosions 3755 | . 220 83 . . 1910 692 850 Melee 99 | . . . . . 99 . . Ramming 98 | . . . . . 46 21 31 Kinetic 6053 | 106 106 58 . 207 2583 2970 23 Thermal 522 | . 220 83 . . 219 . . Explosive 2420 | . . . . . 1030 692 698 Electromagnetic 1687 | . 477 167 . 207 684 . 152 Impact 99 | . . . . . 99 . . Slashing . | . . . . . . . . Piercing . | . . . . . . . . Highest Corruption 9 | . . . . 9 6 9 9 Average Corruption 6 | . . . . 5 5 7 9 Corruption Purged . | . . . . . . . . Corruption Blocked . | . . . . . . . . Effects 188 | . . . . 1 120 56 11 Message Errors 33 | . . . . 1 18 11 3 Matter Fused 55 | . . . . . 37 13 5 Heat Flow Errors 20 | . . . . . 15 5 . Energy Discharges 22 | . . . . . 13 9 . Parts Rejected 1 | . . . . . . 1 . Data Loss (minor) 21 | . . . . . 15 6 . Data Loss (major) 20 | . . . . . 11 8 1 Misfires 8 | . . . . . 6 . 2 Alerts 5 | . . . . . 3 2 . Weapon Failures 3 | . . . . . 2 1 . Overload Shots . | . . . . . . . . Overflow Damage 141 | . 17 . . . 93 16 15 Projectiles 11 | . . . . . 11 . . Explosions 81 | . 17 . . . 33 16 15 Melee 49 | . . . . . 49 . . Knockbacks 3 | . . . . . 3 . . Impact 2 | . . . . . 2 . . Kinetic . | . . . . . . . . Secondary 1 | . . . . . 1 . . Self-Inflicted Damage 243 | . 53 . . . 96 56 38 Shots 8 | . 1 . . . 3 1 3 Rammed 16 | . . . . . 8 3 5 Targets Rammed 19 | . . . . . 9 4 6 Kicked . | . . . . . . . . Crushed 3 | . . . . . 1 1 1 Highest Temperature 334 | . 117 20 . 177 334 279 52 Average Temperature 56 | . 35 8 . 66 66 54 20 Received Heat Transfer 1811 | . 57 . . 81 531 1052 90 Effects 2 | . . . . . 1 1 . Energy Bleed 2 | . . . . . 1 1 . Siege Activations . | . . . . . . . . Robots Corrupted . | . . . . . . . . Combat Hostiles . | . . . . . . . . Parts Fried 6 | . 2 . . . 3 . 1 Impact Corruptions 3 | . . . . . 3 . . Robots Melted . | . . . . . . . . Combat Hostiles . | . . . . . . . . Parts Melted 1 | . . . . . 1 . . Heat Transferred 550 | . 200 50 . . 300 . . Parts Sabotaged . | . . . . . . . . Parts Stolen . | . . . . . . . . Parts Stripped . | . . . . . . . . Power Chain Reactions 9 | . 3 1 . . 5 . . Missiles Intercepted . | . . . . . . . . Alert | -11 -10 -10 -10 -9 -8 -8 -8 ------- Run | Jun Mat Min Exi Min Mat Gar Mat Peak Influence 1551 | 10 156 82 . 80 886 1551 1044 Initial 755 | . 6 60 . . 31 573 755 Average 513 | 3 62 34 . 43 483 1187 825 Maximum Alert Level 4 | . . . . . 3 4 3 Low Security (%) 31 | 100 100 100 . 100 8 . . Level 1 19 | . . . . . 40 . . Level 2 14 | . . . . . 25 6 . Level 3 21 | . . . . . 25 24 100 Level 4 13 | . . . . . . 68 . Level 5 . | . . . . . . . . High Security . | . . . . . . . . Max Security . | . . . . . . . . Squads Dispatched 18 | . 2 1 . . 14 . 1 Investigation 6 | . 2 1 . . 3 . . Extermination . | . . . . . . . . Reinforcement 8 | . . . . . 7 . 1 Assault 1 | . . . . . 1 . . Garrison 3 | . . . . . 3 . . Intercept . | . . . . . . . . Searches Triggered . | . . . . . . . . Construction Impeded 2 | . . . . . 1 . 1 Haulers Reinforced . | . . . . . . . . Active Scanning Responses . | . . . . . . . . Cargo Convoy Interrupts . | . . . . . . . . Stealth | -11 -10 -10 -10 -9 -8 -8 -8 --------- Run | Jun Mat Min Exi Min Mat Gar Mat Distress Signals 5 | . 3 . . . 1 1 . Communications Jammed . | . . . . . . . . Distress Signals . | . . . . . . . . Times Spotted 120 | . 11 3 . 5 57 36 8 Peak Tracking Total 10 | . 3 2 . 3 10 8 3 Tactical Retreats 5 | . 1 . . 1 1 2 . Traps | -11 -10 -10 -10 -9 -8 -8 -8 ------- Run | Jun Mat Min Exi Min Mat Gar Mat Traps Triggered 7 | . 2 . . 1 2 2 . Indirectly . | . . . . . . . . Trap Hack Attempts . | . . . . . . . . Triggered . | . . . . . . . . Disarmed . | . . . . . . . . Reprogrammed . | . . . . . . . . Reused . | . . . . . . . . Traps Extracted . | . . . . . . . . Installed . | . . . . . . . . Triggered . | . . . . . . . . Machines | -11 -10 -10 -10 -9 -8 -8 -8 ---------- Run | Jun Mat Min Exi Min Mat Gar Mat Machines Disabled 8 | . . 2 . . 3 1 2 Max in Single Turn 2 | . . 2 . . 1 1 1 Machines Repaired . | . . . . . . . . Machines Sabotaged . | . . . . . . . . Overloaded Fab Kills . | . . . . . . . . Hacking | -11 -10 -10 -10 -9 -8 -8 -8 --------- Run | Jun Mat Min Exi Min Mat Gar Mat Machines Accessed 18 | . 4 1 1 1 10 1 . Terminals 8 | . 3 . . . 4 1 . Fabricators . | . . . . . . . . Repair Stations 1 | . . . . . 1 . . Recycling Units 3 | . 1 . . . 2 . . Scanalyzers 2 | . . . . . 2 . . Garrison Access 1 | . . . . . 1 . . Total Hacks 50 | . 9 1 1 1 35 3 . Successful 36 | . 7 1 1 1 26 . . Failed 14 | . 2 . . . 9 3 . Catastrophic 3 | . . . . . 2 1 . Database Lockouts . | . . . . . . . . Manual 16 | . 2 . 1 . 13 . . Terminals 24 | . 8 . . . 13 3 . Fabricators . | . . . . . . . . Repair Stations 4 | . . . . . 4 . . Recycling Units 10 | . 1 . . . 9 . . Scanalyzers 8 | . . . . . 8 . . Garrison Access 1 | . . . . . 1 . . Terminal Hacks 11 | . 5 1 1 1 3 . . Robot Analysis 1 | . . . . . 1 . . Prototype ID Bank 2 | . 1 . . . 1 . . Open Door 2 | . . 1 . 1 . . . Emergency Access Points 2 | . 1 . . . 1 . . Hauler Manifests 1 | . 1 . . . . . . Registered Components 1 | . 1 . . . . . . Zone Layout 1 | . 1 . . . . . . EX-Prototype ID Bank 1 | . . . 1 . . . . Fabricator Hacks . | . . . . . . . . Repair Station Hacks 4 | . . . . . 4 . . Scan Component 2 | . . . . . 2 . . Repair 2 | . . . . . 2 . . Recycling Unit Hacks 3 | . 1 . . . 2 . . Report Inventory 3 | . 1 . . . 2 . . Scanalyzer 8 | . . . . . 8 . . Insert Component 4 | . . . . . 4 . . Analyze 4 | . . . . . 4 . . Garrison Access Hacks 1 | . . . . . 1 . . Unlock Access 1 | . . . . . 1 . . Unauthorized Hacks 9 | . 1 . . . 8 . . Terminals 3 | . 1 . . . 2 . . Botnet 3 | . 1 . . . 2 . . Fabricators . | . . . . . . . . Repair Stations . | . . . . . . . . Recycling Units 6 | . . . . . 6 . . Monitor 2 | . . . . . 2 . . Reject 2 | . . . . . 2 . . Mask 2 | . . . . . 2 . . Scanalyzers . | . . . . . . . . Garrison Access . | . . . . . . . . Data Cores Recovered . | . . . . . . . . Used . | . . . . . . . . Hacking Detections 11 | . 3 . . . 7 1 . Full Trace Events 5 | . 1 . . . 3 1 . Feedback Events . | . . . . . . . . Feedback Blocked . | . . . . . . . . Robot Schematics Acquired . | . . . . . . . . Robots Built . | . . . . . . . . Authchips . | . . . . . . . . Time . | . . . . . . . . Total Robot Build Rating . | . . . . . . . . Part Schematics Acquired 4 | . . . . . 4 . . Parts Built . | . . . . . . . . Authchips . | . . . . . . . . Time . | . . . . . . . . Total Part Build Rating . | . . . . . . . . Parts Repaired 1 | . . . . . 1 . . Time 82 | . . . . . 82 . . Parts Recycled . | . . . . . . . . Recycled Matter . | . . . . . . . . Retrieved Matter . | . . . . . . . . Retrieved Components . | . . . . . . . . Parts Scanalyzed 4 | . . . . . 4 . . Part Schematics Acquired 4 | . . . . . 4 . . Parts Damaged . | . . . . . . . . Bothacking | -11 -10 -10 -10 -9 -8 -8 -8 ------------ Run | Jun Mat Min Exi Min Mat Gar Mat Used RIF Installer . | . . . . . . . . Robots Hacked . | . . . . . . . . Non-combat . | . . . . . . . . Combat . | . . . . . . . . Robot Hacks Applied . | . . . . . . . . Relay Couplers Released . | . . . . . . . . Fabnet Peak Effective % . | . . . . . . . . Robots Rewired 9 | . 1 . . . . 8 . Allies Hacked . | . . . . . . . . Hacks Repelled . | . . . . . . . . Allies | -11 -10 -10 -10 -9 -8 -8 -8 -------- Run | Jun Mat Min Exi Min Mat Gar Mat Total Allies 12 | . 1 . . 3 . 8 . Largest Group 8 | . 1 . . 3 3 8 . Highest-Rated Group 141 | . 8 . . 92 92 141 . Highest-Rated Ally 31 | . 8 . . 31 31 31 . Total Orders 3 | . . . . . . 3 . STAY 1 | . . . . . . 1 . ROAM 1 | . . . . . . 1 . FOLLOW 1 | . . . . . . 1 . Ally Attacks 26 | . 1 . . . 9 16 . Total Damage 382 | . 11 . . . 83 288 . Kills 4 | . . . . . 1 3 . Allies Corrupted . | . . . . . . . . Allies Melted . | . . . . . . . . Intel | -11 -10 -10 -10 -9 -8 -8 -8 ------- Run | Jun Mat Min Exi Min Mat Gar Mat Robot Analysis Total 1 | . . . . . 1 . . Derelict Logs Recovered 4 | . . 2 . 2 . . . Drone Launches . | . . . . . . . . Drone Recoveries . | . . . . . . . . Exploration | -11 -10 -10 -10 -9 -8 -8 -8 ------------- Run | Jun Mat Min Exi Min Mat Gar Mat Turns Passed 9884 | 72 681 1019 381 796 4749 1857 329 Spaces Moved 3865 | 22 457 680 288 439 1386 503 90 Core . | . . . . . . . . Treads 1346 | . . . . . 753 503 90 Legs . | . . . . . . . . Wheels 2519 | 22 457 680 288 439 633 . . Hover . | . . . . . . . . Flight . | . . . . . . . . Fastest Speed 100 | 100 100 115 130 130 123 250 250 Average Speed 167 | 100 106 120 130 130 195 250 250 Slowest Speed 318 | 100 115 130 130 130 318 250 250 Overloaded Moves . | . . . . . . . . Propulsion Burnouts . | . . . . . . . . Robots Hopped . | . . . . . . . . Cave-ins Triggered 1 | . . . . . 1 . . Exploration Rate (%) 61 | 3 75 98 70 90 95 50 10 Regions Visited 7 Branch Regions 3 Pre-discovered Areas 2 | . . 1 . 1 . . . Known Exits Taken 1 | . . . . . 1 . . Unknown Exits Taken 5 | 1 1 1 1 1 . . . Scrap Searched 2 | . . 1 . 1 . . . Spaces Dug 29 | . . . . . 3 23 3 Terrain Destroyed 241 | . 11 7 . . 77 58 88 Melee 10 | . . . . . 3 4 3 Projectile 3 | . . . . . 1 2 . AOE 228 | . 11 7 . . 73 52 85 Terrain Rammed . | . . . . . . . . Walls Destroyed . | . . . . . . . . Machines Disabled . | . . . . . . . . Actions | -11 -10 -10 -10 -9 -8 -8 -8 --------- Run | Jun Mat Min Exi Min Mat Gar Mat Total 6765 | 48 617 864 295 636 3253 891 161 Wait 2161 | 11 104 149 . 157 1591 113 36 Move 3858 | 21 456 679 287 438 1385 502 90 Hop . | . . . . . . . . Pick Up 82 | 2 11 17 2 9 37 4 . Fast Attach 23 | 1 4 . 2 1 10 3 2 Attach 22 | . 2 1 . 1 13 3 2 Detach 10 | . . 1 . . 6 . 3 Swap 82 | 2 2 2 . 5 34 31 6 Drop 76 | . 11 5 4 9 42 4 1 Fire 318 | 11 18 10 . 16 121 130 12 Melee 24 | . . . . . 5 16 3 Ram . | . . . . . . . . Kick . | . . . . . . . . Crush 19 | . . . . . 9 4 6 Escape Stasis 2 | . . . . . . 2 . Rewire 88 | . 9 . . . . 79 . Trap . | . . . . . . . . Miscellaneous . | . . . . . . . . Route ------- -11/Junkyard -10/Materials (discovered 3 exits: [*Mat x2] / *Min) -10/Mines (discovered 3 exits: [*Mat x2] / *Exi) -10/Exiles -9/Mines (discovered 2 exits: *Mat x2) -8/Materials (discovered 4 exits: *Fac x3 / Gar) -8/Garrison (discovered 2 exits: [*Mat x2]) -8/Materials History --------- Turn | Location | Event 13 | -11/Junkyard | Discovered new exit (range 2) 73 | -11/Junkyard | Entered Materials 306 | -10/Materials | Build established: Mutant 440 | -10/Materials | Discovered new exit (range 10) 487 | -10/Materials | Discovered new exit (range 7) 580 | -10/Materials | Discovered new exit (range 11) 754 | -10/Materials | Entered Mines 757 | -10/Mines | Joined a pair of Derelicts in attacking an 0b10 outpost 763 | -10/Mines | Met a Derelict bent on vengeance 869 | -10/Mines | Learned Materials security intel 985 | -10/Mines | Found a damaged Exp. Sensor Array with a note attached 988 | -10/Mines | Found Prototype Device 1068 | -10/Mines | Received a Rocket Launcher from a helpful Derelict 1134 | -10/Mines | Deemed a non-threat by the Exiles lab entrance 1134 | -10/Mines | Discovered new exit (range 5) 1147 | -10/Mines | Learned location of Storage (-7) 1231 | -10/Mines | Discovered new exit (range 10) 1311 | -10/Mines | Found a hidden stash of uninstalled traps 1322 | -10/Mines | Discovered new exit (range 9) 1344 | -10/Mines | Learned 2 Materials zone layouts 1566 | -10/Mines | Met a Derelict shopkeep closing up shop 1773 | -10/Mines | Entered Exiles 1806 | -10/Exiles | Met 8R-AWN 1827 | -10/Exiles | Met EX-HEX 1867 | -10/Exiles | Met EX-BIN 1883 | -10/Exiles | Aligned with FarCom system 1884 | -10/Exiles | Given EX-Vault access code 1915 | -10/Exiles | Opened EX-Vault 1925 | -10/Exiles | Found Firepult 1957 | -10/Exiles | Warned to stay clear of 0b10 Research branches 2001 | -10/Exiles | Met EX-DEC 2139 | -10/Exiles | Discovered new exit (range 14) 2154 | -10/Exiles | Left Exiles lab with Firepult 2154 | -10/Exiles | Entered Mines 2155 | -9/Mines | Assembled infested the area 2161 | -9/Mines | Met a Derelict who couldn't figure out how to use a Trap Extractor 2184 | -9/Mines | Found Powered Armor 2425 | -9/Mines | Discovered new exit (range 14) 2901 | -9/Mines | Received a Mining Laser from a helpful Derelict 2932 | -9/Mines | Discovered new exit (range 9) 2950 | -9/Mines | Entered Materials 2950 | -8/Materials | Accompanied by 3 allies 2950 | -8/Materials | Evolved 4 slots: Propulsion x1, Utility x3 2951 | -8/Materials | Identified exit to Factory 2955 | -8/Materials | Led the pair of lost Derelicts to an unsafe place 3443 | -8/Materials | Crushed by falling debris 3466 | -8/Materials | Destroyed 11 combat bots 3474 | -8/Materials | Lost 3 parts (1n2u) 6377 | -8/Materials | Repaired Med. Reactive Plating 6394 | -8/Materials | Garrison activated, responded to threat 6541 | -8/Materials | Discovered exit to Factory (range 16) 6950 | -8/Materials | First assault squad dispatched 7311 | -8/Materials | Identified exit to Garrison 7420 | -8/Materials | Build established: Skirmisher 7699 | -8/Materials | Entered Garrison 7819 | -8/Garrison | Core integrity fell below 50% 8007 | -8/Garrison | Build established: Mutant 8017 | -8/Garrison | Triggered checkpoint 8071 | -8/Garrison | Destroyed 7 combat bots 8093 | -8/Garrison | Triggered checkpoint 8147 | -8/Garrison | Core integrity fell below 20% 8243 | -8/Garrison | Discovered new exit (range 10) 8744 | -8/Garrison | Destroyed 7 combat bots 8932 | -8/Garrison | Discovered new exit (range 10) 9084 | -8/Garrison | Build established: Commander-Mutant 9238 | -8/Garrison | Triggered checkpoint 9366 | -8/Garrison | Triggered checkpoint 9486 | -8/Garrison | Triggered checkpoint 9556 | -8/Garrison | Entered Materials 9683 | -8/Materials | Build established: Mutant 9885 | -8/Materials | Destroyed by G-47 Trooper with Particle Gun Last Messages --------------- 09870_ U-05 Engineer lays Concrete. 09871_ K#VIZ|WEGS 8ON3X1 09871_ U-05 Engineer lays Concrete. 09872_ Destroyed Wheel. 09872_ K-01 Serf destroyed. 09872_ U-05 Engineer builds a Wall. 09872_ U-05 Engineer lays Concrete. 09873_ U-05 Engineer destroyed. 09874_ R-06 Scavenger collects Terrain Scan Processor. 09875_ U-05 Engineer lays Concrete. 09875_ G-47 Trooper destroyed. 09876_ U-05 Engineer builds a Wall. 09876_ U-05 Engineer lays Concrete. 09876_ U-05 Engineer builds a Wall. 09877_ R-06 Scavenger collects Welding Torch. 09877_ U-05 Engineer lays Concrete. 09880_ R-06 Scavenger collects Wheel. 09881_ Critical hit (Burn: +37). 09881_ U-05 Engineer lays Concrete. 09881_ U-05 Engineer builds a Wall. Map ----- +----------------------------------------------------+ | ?????????????????????????????????????????????????? | | ?????????????????????????????????????????????????? | | ?????????????????????????????????????????????????? | | ?????????????????????????????????????????????????? | | ?????????????????????????????????????????????????? | | ?????????????????????????????????????????????????? | | ?????????????????????????????????????????????????? | | ?????????????????????????????????????????????????? | | ?????????????????????????????????????????????????? | | ?????????????????????????????????????????????????? | | ?????????????????????????????????????????????????? | | ?????????????????????????????????????????????????? | | ?????????????????????????????????????????????????? | | ?????????????????????????????????????????????????? | | ?????????????###########?????????????????????????? | | ?????????????# #?????????????????????????? | | ?????????????# #?????????????????????????? | | ?????????????# #?????????????????????????? | | ???????????### #?????????????????????????? | | ???????????? + #????????##########???????? | | ?????????????# #??????### #!!!!]]#???????? | | ??????? ?????? ######## #! !]]#???????? | | ????? ???? ?# ## # # #???????? | | ????? ######+#######% # ## +?? | | ????? ru u a + #?? | | ????? % @ # =#?? | | ????? = u +? #?? | | ?????? ######## ###### ###??###?? | | ??????????# ??# ##### g% ## | | ??????????###????# #????### = | | ??????????######?# ######## = ###+##????? | | ??????????# ?# # #" #??????????? | | ??????????# # # """ # ##??????????? | | ??????????# # # """ #""" #???????????? | | ??????????# """ + + """ =#""" ##??????????? | | ??????????# """ # # #""" ##??????????? | | ??????????# """ # # # ##??????????? | | ??????????######?# #################???????????? | | ?????????????????#####?????????###???????????????? | | ?????????????????????????????????????????????????? | | ?????????????????????????????????????????????????? | | ?????????????????????????????????????????????????? | | ?????????????????????????????????????????????????? | | ?????????????????????????????????????????????????? | | ?????????????????????????????????????????????????? | | ?????????????????????????????????????????????????? | | ?????????????????????????????????????????????????? | | ?????????????????????????????????????????????????? | | | | | +----------------------------------------------------+ Best States ------------- Heat Dissipation 45 Energy Generation 18 Energy Capacity 160 Matter Stores 300 Matter Capacity 300 Sight Range 16 Terrain Scan Range 18 Terrain Scan Density 10 Armor Coverage 625 Resistance: KI 30 Resistance: TH 15 Resistance: EX 25 Resistance: EM 15 Weapon Shielding 66 Evasion (%) 40 Targeting Accuracy 16 Recoil Reduction 3 Kinecelleration 30 Offensive Hacking 10 Authchip Count 1 Item Schematics ----------------- Enh. Autogun | -8/Materials | Scanalyzed Lgt. Angular Momentum Engine | -8/Materials | Scanalyzed Lrn. Tractor Beam | -8/Materials | Scanalyzed Med. Reactive Plating | -8/Materials | Scanalyzed Robot Schematics ------------------ None Fabricated ------------ Nothing Alien Tech Used ----------------- None Achievements -------------- None Challenges ------------ None Game ------ Seed CloakingDimensionalMembrane Manual? 0 Play Time 01:19:13 Cumulative 373.6 hours Start 2023.02.23 @ 21:59:29 End 2023.02.24 @ 19:30:45 Sessions 1 Manual Loads 0 Difficulty Rogue Special Mode None Game No. 434 Rogue 434 Adventurer 0 Explorer 0 Win Type - Total 0 Types 0/0/0/0/0/0/0/0/0 Lore% 51 Gallery% 74 Achievement% 61 Wizard Run 0 Options --------- ASCII 0 Keyboard 0 Movement Mouse Keybinds 0 Fullscreen 2 Font 24/Smallcaps Map View 76x50 Tactical HUD 1 Map Filters NONE Filters NONE Steam 1 RUN: 86763f4a-7fbf-4622-b99f-d0ac988101cd